bitfinex-derivatives/quotes_SOLF0:USTF0_20250518
["timestamp","ask_amount","ask_price","bid_price","bid_amount"]
[1747590194642,5.7347,174.32,174.26,5.7365]
[1747590194944,5.7355,174.3,174.25,3.9256]
[1747590196445,5.7349,174.32,174.25,3.9256]
[1747590196642,201.68,174.4,174.25,3.9256]
[1747590198252,5.7349,174.32,174.26,5.7363]
[1747590198553,201.68,174.4,174.26,5.7363]
[1747590199051,5.7352,174.31,174.25,9.6625]
[1747590200156,5.7347,174.32,174.26,5.7365]
[1747590200350,5.7347,174.32,174.25,3.9256]
[1747590200553,100.48,174.36,174.25,3.9256]
[1747590200850,100.48,174.36,174.26,5.7365]
[1747590201254,11.4629,174.42,174.26,5.7365]
[1747590201456,200.96,174.41,174.26,5.7365]
[1747590201656,5.7351,174.31,174.26,5.7365]
[1747590203857,5.7345,174.33,174.25,3.9256]
[1747590204049,100.4,174.36,174.25,3.9256]
[1747590204356,100.48,174.38,174.25,3.9256]
[1747590204657,100.4,174.37,174.25,8.66315545]
[1747590205050,5.734,174.34,174.25,8.66315545]
[1747590205252,100.4,174.37,174.25,8.66315545]
[1747590205957,5.7345,174.33,174.29,5.7355]
[1747590206153,495.34,174.43,174.25,8.66315545]
[1747590206352,200.84,174.42,174.25,8.66315545]
[1747590207056,5.7352,174.31,174.25,8.66315545]
[1747590207253,200.84,174.42,174.25,8.66315545]
[1747590207650,13.35745692,174.4,174.25,8.66315545]
[1747590208160,5.7354,174.3,174.25,9.6624]
[1747590208553,100.32,174.35,174.25,3.9256]
[1747590209250,5.7355,174.3,174.25,9.6624]
[1747590210363,5.7355,174.3,174.26,5.7366]
[1747590210862,100.32,174.35,174.26,5.7366]
[1747590211360,100.32,174.35,174.25,3.9256]
[1747590212363,100.32,174.35,174.25,9.6624]
[1747590213167,5.7351,174.31,174.25,9.6624]
[1747590213565,5.7351,174.31,174.26,5.7365]
[1747590214564,8.34894182,174.39,174.25,3.9256]
[1747590214865,100.14,174.38,174.25,3.9256]
[1747590215266,100.14,174.38,174.28,5.7356]
[1747590215462,100.14,174.38,174.25,3.9256]
[1747590216173,5.7345,174.33,174.28,5.7359]
[1747590219175,5.7346,174.32,174.28,5.7359]
[1747590219568,5.7346,174.32,174.29,5.7356]
[1747590219767,5.7346,174.32,174.25,3.9256]
[1747590220474,5.7346,174.32,174.28,5.7357]
[1747590220677,5.7346,174.32,174.25,3.9256]
[1747590221875,5.7346,174.32,174.28,5.7356]
[1747590222180,5.7346,174.32,174.25,3.9256]
[1747590222884,5.7346,174.32,174.29,5.7355]
[1747590223183,99.9,174.39,174.27,8.34894182]
[1747590223582,99.9,174.39,174.31,5.7347]
[1747590224185,5.7338,174.35,174.31,5.7347]
[1747590224387,99.9,174.39,174.31,5.7347]
[1747590224580,100.5,174.4,174.27,8.34894182]
[1747590224883,99.86,174.39,174.27,8.34894182]
[1747590225186,5.734,174.34,174.31,5.7347]
[1747590225377,99.86,174.39,174.31,5.7347]
[1747590227086,5.7338,174.35,174.31,5.7347]
[1747590228086,5.734,174.34,174.31,5.7347]
[1747590230086,5.7337,174.35,174.31,5.7347]
[1747590230388,200.18,174.4,174.27,8.34894182]
[1747590230577,5.7333,174.36,174.27,8.34894182]
[1747590230775,100.5,174.4,174.33,5.734]
[1747590230978,100.5,174.4,174.3,108.00894182]
[1747590231175,100.5,174.4,174.34,5.7337]
[1747590232190,5.7329,174.38,174.34,5.7337]
[1747590232682,5.733,174.37,174.34,5.7337]
[1747590234588,100.5,174.4,174.3,108.00894182]
[1747590235085,100.5,174.4,174.3,99.66]
[1747590235887,5.7337,174.35,174.31,5.7348]
[1747590236091,100.5,174.4,174.32,4.77130714]
[1747590237695,100.5,174.4,174.3,105.3951]
[1747590237884,5.7342,174.34,174.3,99.66]
[1747590238085,100.5,174.4,174.3,99.66]
[1747590239192,100.5,174.4,174.31,4.77659167]
[1747590239393,5.7342,174.34,174.31,4.77659167]
[1747590241496,5.7342,174.34,174.32,4.77659167]
[1747590242192,5.7337,174.35,174.32,4.77659167]
[1747590242589,99.28,174.39,174.32,4.77659167]
[1747590242785,99.26,174.41,174.32,4.77659167]
[1747590242985,99.26,174.43,174.32,4.77659167]
[1747590243182,99.26,174.43,174.33,4.77659167]
[1747590243394,5.7327,174.38,174.33,4.77659167]
[1747590244293,5.7327,174.38,174.34,5.7337]
[1747590244792,99.2,174.43,174.34,4.77659167]
[1747590245888,5.733,174.37,174.34,4.77659167]
[1747590246393,5.733,174.37,174.33,5.734]
[1747590247096,5.7333,174.36,174.32,5.7345]
[1747590247289,99.2,174.43,174.32,5.7345]
[1747590247596,5.7332,174.37,174.33,5.7343]
[1747590247898,99.2,174.43,174.31,1.8693]
[1747590248093,99.2,174.43,174.33,4.77396006]
[1747590248293,99.2,174.43,174.33,10.50816006]
[1747590249398,99.2,174.43,174.34,5.7339]
[1747590249794,99.2,174.43,174.33,5.7342]
[1747590250200,99.2,174.43,174.31,1.8693]
[1747590250400,99.2,174.43,174.3,99.66]
[1747590250694,99.2,174.43,174.33,5.7342]
[1747590250894,99.2,174.43,174.3,99.66]
[1747590251092,99.2,174.43,174.31,5.7348]
[1747590251293,99.2,174.43,174.31,4.77339539]
[1747590252300,99.2,174.43,174.33,5.7342]
[1747590252499,99.2,174.43,174.32,4.77339539]
[1747590252899,99.2,174.43,174.32,10.50789539]
[1747590253097,99.2,174.43,174.32,4.77339539]
[1747590253603,8.34894182,174.42,174.32,4.77339539]
[1747590254297,8.34894182,174.42,174.33,4.77339539]
[1747590254798,5.7339,174.34,174.33,4.77339539]
[1747590255299,5.7351,174.31,174.27,11.09165567]
[1747590255695,98.82,174.36,174.28,5.7358]
[1747590256904,98.82,174.36,174.27,5.35545567]
[1747590257110,5.7332,174.37,174.28,8.34894182]
[1747590257410,5.7332,174.37,174.33,5.7342]
[1747590257908,5.7327,174.38,174.33,5.7342]
[1747590258298,5.7327,174.38,174.34,4.77273912]
[1747590258498,5.7327,174.38,174.34,10.50663912]
[1747590258704,5.7324,174.39,174.34,4.77273912]
[1747590258904,21.84840591,174.5,174.34,4.77273912]
[1747590259104,198.32,174.48,174.34,4.77273912]
[1747590259810,198.32,174.48,174.35,4.77273912]
[1747590260006,5.7318,174.41,174.36,5.7333]
[1747590261508,5.7321,174.4,174.37,4.77273912]
[1747590262007,5.7317,174.41,174.37,4.77273912]
[1747590262302,10.39050591,174.52,174.38,5.7326]
[1747590262507,98.54,174.46,174.38,5.7326]
[1747590262707,5.7313,174.43,174.38,5.7326]
[1747590263911,5.7313,174.42,174.38,5.7326]
[1747590264297,98.46,174.41,174.31,5.35545567]
[1747590265005,98.46,174.41,174.32,4.79139037]
[1747590265207,98.46,174.41,174.32,10.52599037]
[1747590265709,5.7332,174.37,174.32,10.52599037]
[1747590266107,98.46,174.41,174.32,10.52599037]
[1747590266108,98.46,174.41,174.33,4.79139037]
[1747590267815,5.7332,174.37,174.34,4.79139037]
[1747590268016,98.54,174.46,174.34,4.79139037]
[1747590268017,8.34894182,174.46,174.34,4.79139037]
[1747590268213,196.86,174.45,174.34,4.79139037]
[1747590268412,5.7326,174.39,174.34,4.79139037]
[1747590268817,5.7327,174.38,174.34,10.52529037]
[1747590269018,196.86,174.45,174.34,4.79139037]
[1747590269413,196.86,174.45,174.33,5.7342]
[1747590269720,196.86,174.45,174.3,8.34894182]
[1747590270923,5.7327,174.38,174.3,8.34894182]
[1747590271420,5.733,174.37,174.31,4.79078691]
[1747590272713,5.733,174.37,174.34,5.7337]
[1747590274723,5.7335,174.36,174.33,5.7342]
[1747590275021,106.50894182,174.43,174.29,107.27415567]
[1747590275623,106.50894182,174.43,174.3,4.79207086]
[1747590275922,5.7332,174.37,174.3,4.79207086]
[1747590276425,5.7332,174.37,174.33,5.734]
[1747590277025,5.7332,174.37,174.34,5.7339]
[1747590277332,5.7327,174.38,174.3,4.79207086]
[1747590277520,5.7327,174.38,174.35,5.7336]
[1747590277920,98.16,174.43,174.34,4.79207086]
[1747590278129,5.733,174.37,174.34,4.79207086]
[1747590278828,5.733,174.37,174.34,10.52577086]
[1747590279030,5.733,174.37,174.34,5.7337]
[1747590279222,5.7327,174.38,174.3,8.34894182]
[1747590279529,98.16,174.43,174.3,8.34894182]
[1747590280028,5.7329,174.38,174.35,5.7336]
[1747590280231,98.54,174.45,174.3,8.34894182]
[1747590280632,5.7322,174.4,174.36,5.733]
[1747590281331,5.7322,174.4,174.37,5.7329]
[1747590283629,17.2,174.43,174.3,5.35545567]
[1747590283834,8.34473581,174.35,174.3,5.35545567]
[1747590284040,196.22,174.34,174.3,5.35545567]
[1747590284236,5.7343,174.33,174.32,5.35545567]
[1747590284438,196.22,174.34,174.29,7.09657439]
[1747590284732,8.35471693,174.33,174.29,7.09657439]
[1747590285233,5.7353,174.3,174.29,7.09657439]
[1747590287938,8.35471693,174.33,174.21,9.6039]
[1747590288634,5.7368,174.26,174.21,9.6039]
[1747590289835,5.7369,174.25,174.21,9.6039]
[1747590292237,5.7369,174.25,174.21,3.8657]
[1747590296037,5.7369,174.25,174.21,9.6039]
[1747590297037,5.7373,174.24,174.21,3.8657]
[1747590297238,8.35471693,174.33,174.16,8.35471693]
[1747590297436,8.35471693,174.33,174.16,109.33191693]
[1747590297640,5.7377,174.23,174.18,5.7389]
[1747590298042,5.7377,174.23,174.19,5.7388]
[1747590300242,8.35471693,174.33,174.19,5.7388]
[1747590300243,5.7379,174.22,174.19,5.7388]
[1747590300744,5.7379,174.22,174.18,5.7391]
[1747590302148,5.7379,174.22,174.19,5.7389]
[1747590302849,5.7376,174.23,174.19,5.7389]
[1747590303242,97.02,174.28,174.19,5.7389]
[1747590304449,5.7376,174.23,174.19,5.7389]
[1747590305147,5.7376,174.23,174.2,5.7386]
[1747590306146,5.7373,174.24,174.21,5.7382]
[1747590306345,97.02,174.28,174.16,12.17191693]
[1747590306546,96.78,174.29,174.16,12.17191693]
[1747590306742,5.737,174.25,174.21,5.738]
[1747590307048,5.737,174.25,174.16,12.17191693]
[1747590309044,5.737,174.25,174.17,96.68]
[1747590309244,5.737,174.25,174.18,1.9719]
[1747590310855,5.7368,174.26,174.18,1.9719]
[1747590311054,8.35471693,174.33,174.18,1.9719]
[1747590311353,96.58,174.32,174.18,1.9719]
[1747590311952,5.7371,174.25,174.18,1.9719]
[1747590312454,5.7371,174.25,174.22,5.7379]
[1747590315758,8.35471693,174.3,174.18,1.9719]
[1747590316258,5.7376,174.23,174.19,5.7387]
[1747590316650,97.38,174.28,174.19,5.7387]
[1747590316851,5.7381,174.22,174.18,5.7391]
[1747590317359,96.3,174.26,174.16,3.8172]
[1747590318051,5.7383,174.21,174.17,5.7395]
[1747590318455,96.3,174.26,174.16,3.8172]
[1747590318657,96.3,174.26,174.15,98.54]
[1747590319057,5.7389,174.19,174.15,104.2802]
[1747590319360,96.3,174.26,174.15,104.2802]
[1747590319557,5.7377,174.23,174.17,5.7395]
[1747590319755,96.18,174.26,174.15,98.54]
[1747590320157,96.18,174.26,174.17,5.7395]
[1747590320664,5.7377,174.23,174.18,5.7389]
[1747590320866,97.38,174.27,174.15,98.54]
[1747590321056,96.12,174.26,174.15,98.54]
[1747590321255,5.7382,174.21,174.16,5.7398]
[1747590321556,5.7382,174.21,174.15,98.54]
[1747590322363,5.7382,174.21,174.17,5.7395]
[1747590322963,5.7386,174.2,174.17,5.7395]
[1747590323163,96.12,174.26,174.15,98.54]
[1747590323164,96.12,174.26,174.18,5.7391]
[1747590323364,96.12,174.26,174.15,98.54]
[1747590323564,8.35471693,174.3,174.2,5.7385]
[1747590323866,96.0,174.3,174.16,104.35471693]
[1747590324066,5.7371,174.25,174.16,104.35471693]
[1747590324260,96.0,174.3,174.16,104.35471693]
[1747590324461,96.0,174.3,174.16,8.35471693]
[1747590324665,5.7381,174.22,174.16,8.35471693]
[1747590324863,104.35471693,174.3,174.15,98.54]
[1747590325569,104.35471693,174.3,174.15,104.2802]
[1747590326168,5.7388,174.2,174.15,104.2802]
[1747590326369,95.92,174.24,174.15,98.54]
[1747590326669,95.92,174.24,174.11,5.8208]
[1747590326965,5.7398,174.17,174.13,5.7408]
[1747590327174,95.92,174.24,174.13,5.7408]
[1747590327470,5.7395,174.18,174.13,5.7408]
[1747590328264,5.739,174.19,174.11,5.8208]
[1747590328568,95.92,174.24,174.11,5.8208]
[1747590328770,5.7386,174.2,174.16,5.7397]
[1747590330771,95.92,174.24,174.16,5.7397]
[1747590331272,5.7386,174.2,174.11,5.8208]
[1747590331773,5.7386,174.2,174.17,5.7393]
[1747590332575,5.7383,174.21,174.17,5.7393]
[1747590332771,5.7383,174.21,174.18,5.7392]
[1747590333275,104.39471693,174.27,174.13,8.35471693]
[1747590333465,95.56,174.26,174.13,8.35471693]
[1747590333774,5.738,174.22,174.19,5.7389]
[1747590335278,5.7376,174.23,174.19,5.7389]
[1747590335577,5.7376,174.23,174.2,5.7385]
[1747590338278,5.738,174.22,174.19,5.7388]
[1747590338970,5.7382,174.21,174.18,5.7391]
[1747590339682,5.738,174.22,174.18,5.7391]
[1747590339973,5.738,174.22,174.16,96.06]
[1747590339974,96.04,174.27,174.16,96.06]
[1747590340376,5.7379,174.23,174.19,5.7387]
[1747590340582,96.04,174.27,174.19,5.7387]
[1747590340788,5.7378,174.23,174.19,5.7387]
[1747590341482,96.04,174.27,174.19,5.7387]
[1747590341677,96.04,174.27,174.2,5.7386]
[1747590342285,96.04,174.27,174.16,104.41471693]
[1747590342579,8.35471693,174.3,174.16,104.41471693]
[1747590342781,5.7376,174.24,174.2,5.7383]
[1747590342987,95.12,174.29,174.2,5.7383]
[1747590343981,104.39471693,174.3,174.2,5.7383]
[1747590344279,95.06,174.29,174.2,5.7383]
[1747590344983,5.7375,174.24,174.2,5.7383]
[1747590345583,5.7376,174.23,174.2,5.7383]
[1747590346382,5.7374,174.24,174.2,5.7383]
[1747590347589,5.7377,174.23,174.2,5.7383]
[1747590348692,5.7377,174.23,174.19,5.7388]
[1747590348988,5.7382,174.22,174.16,109.7771075]
[1747590349193,95.06,174.29,174.18,5.7391]
[1747590349486,5.7383,174.21,174.18,5.7391]
[1747590350291,5.738,174.22,174.18,5.7391]
[1747590351388,95.06,174.29,174.16,101.42239057]
[1747590351582,8.35471693,174.27,174.16,96.06]
[1747590351982,5.738,174.22,174.18,5.7391]
[1747590352290,5.738,174.22,174.16,96.06]
[1747590352494,5.738,174.22,174.17,5.7393]
[1747590352892,5.738,174.22,174.16,96.06]
[1747590353193,5.7377,174.23,174.16,96.06]
[1747590353893,5.7377,174.23,174.19,5.7386]
[1747590354089,5.7373,174.24,174.16,96.06]
[1747590354297,94.6,174.27,174.16,96.06]
[1747590354588,5.7383,174.21,174.18,5.7392]
[1747590354792,94.6,174.27,174.16,96.06]
[1747590354993,94.6,174.27,174.18,5.7391]
[1747590355392,94.6,174.27,174.16,96.06]
[1747590355592,94.6,174.27,174.16,101.7997]
[1747590355795,94.6,174.27,174.16,96.06]
[1747590356096,94.6,174.27,174.17,5.7393]
[1747590356497,5.7385,174.21,174.17,5.7393]
[1747590356796,5.7385,174.21,174.18,5.7392]
[1747590357992,5.7385,174.21,174.17,5.7394]
[1747590358197,5.7386,174.2,174.17,5.7394]
[1747590358396,94.6,174.27,174.16,96.06]
[1747590358597,5.7391,174.19,174.16,96.06]
[1747590358899,5.7391,174.19,174.15,5.7402]
[1747590359198,5.7385,174.21,174.16,5.7398]
[1747590359796,5.7384,174.21,174.16,5.7398]
[1747590359998,102.95471693,174.27,174.16,5.7398]
[1747590360500,94.26,174.26,174.14,5.36239057]
[1747590360996,94.24,174.26,174.14,5.36239057]
[1747590362501,94.24,174.26,174.18,5.739]
[1747590363903,5.7381,174.22,174.18,5.739]
[1747590364705,5.7383,174.21,174.18,5.739]
[1747590366202,5.7387,174.2,174.15,94.6]
[1747590366406,94.24,174.26,174.15,94.6]
[1747590366795,94.24,174.26,174.16,5.7396]
[1747590368000,94.24,174.26,174.17,5.7394]
[1747590368204,94.24,174.26,174.15,94.6]
[1747590368705,5.7381,174.22,174.18,5.739]
[1747590368900,94.24,174.26,174.15,94.6]
[1747590370004,94.24,174.26,174.16,5.7398]
[1747590370304,94.24,174.26,174.15,94.6]
[1747590370504,5.7391,174.19,174.15,100.3401]
[1747590371214,5.7393,174.18,174.15,94.6]
[1747590371512,94.24,174.26,174.15,94.6]
[1747590372005,5.7377,174.23,174.15,94.6]
[1747590372208,94.24,174.26,174.15,100.34]
[1747590372606,94.24,174.26,174.16,5.7398]
[1747590372807,94.24,174.26,174.15,94.6]
[1747590373111,5.7385,174.21,174.15,94.6]
[1747590373311,94.24,174.26,174.17,5.7395]
[1747590373708,5.7385,174.21,174.17,5.7395]
[1747590373908,94.24,174.26,174.15,94.6]
[1747590374311,94.24,174.26,174.16,5.7398]
[1747590374713,5.7388,174.2,174.16,5.7398]
[1747590377007,5.7383,174.21,174.17,5.7394]
[1747590377406,5.7383,174.21,174.15,94.6]
[1747590377714,5.7383,174.21,174.17,5.7393]
[1747590377910,93.46,174.25,174.15,94.6]
[1747590378213,93.46,174.25,174.15,100.3399]
[1747590378512,5.7392,174.19,174.15,94.6]
[1747590378814,5.7392,174.19,174.15,100.3401]
[1747590379001,5.7395,174.18,174.15,94.6]
[1747590379208,93.46,174.25,174.15,94.6]
[1747590380414,5.7382,174.22,174.17,5.7393]
[1747590380716,93.32,174.24,174.17,5.7393]
[1747590381014,5.7381,174.22,174.18,5.7389]
[1747590381712,5.7382,174.21,174.17,5.7394]
[1747590382807,6.98990281,174.25,174.15,94.6]
[1747590383210,187.88,174.26,174.15,94.6]
[1747590384619,5.7393,174.18,174.15,94.6]
[1747590384813,187.88,174.26,174.15,94.6]
[1747590385021,8.35471693,174.24,174.13,5.36239057]
[1747590385317,5.7402,174.16,174.13,5.36239057]
[1747590385713,5.7402,174.16,174.11,5.8208]
[1747590385914,5.7402,174.16,174.12,5.7411]
[1747590386213,5.7402,174.16,174.11,5.8208]
[1747590386214,5.7402,174.15,174.11,5.8208]
[1747590386513,5.7402,174.15,174.11,11.5622]
[1747590386720,93.02,174.2,174.11,5.8208]
[1747590387014,93.02,174.2,174.11,3.8035]
[1747590387219,5.7408,174.14,174.11,3.8035]
[1747590387706,5.7403,174.15,174.11,3.8035]
[1747590387911,186.2,174.2,174.11,3.8035]
[1747590388821,5.7408,174.14,174.11,3.8035]
[1747590389022,186.2,174.2,174.11,3.8035]
[1747590389222,186.2,174.2,174.1,93.18]
[1747590389418,5.7411,174.13,174.07,5.7493]
[1747590389822,5.7413,174.12,174.08,5.7424]
[1747590390718,8.35471693,174.18,174.06,5.36239057]
[1747590390924,92.84,174.14,174.06,5.36239057]
[1747590391724,5.7426,174.08,174.06,5.36239057]
[1747590391923,92.84,174.14,174.06,5.36239057]
[1747590392426,92.84,174.14,174.06,11.10539057]
[1747590393320,5.7421,174.1,174.06,5.743]
[1747590394627,5.7416,174.11,174.07,5.7428]
[1747590395130,5.7416,174.11,174.06,5.7429]
[1747590396431,5.742,174.1,174.06,5.7429]
[1747590396729,5.742,174.1,174.05,93.18]
[1747590396930,5.7422,174.09,174.05,93.18]
[1747590397531,5.7422,174.09,174.05,98.9233]
[1747590397730,5.7426,174.08,174.05,93.18]
[1747590398032,92.7,174.14,174.05,93.18]
[1747590400334,92.7,174.14,174.05,98.9234]
[1747590402635,5.7425,174.08,174.05,93.18]
[1747590403539,5.7429,174.07,174.05,93.18]
[1747590403730,92.7,174.14,174.05,93.18]
[1747590403931,92.7,174.14,174.03,1.8968]
[1747590404334,92.7,174.14,174.03,7.6406]
[1747590404740,5.7431,174.07,174.03,7.6406]
[1747590405538,5.7432,174.06,174.03,1.8968]
[1747590405841,101.05471693,174.14,174.02,3.8091]
[1747590406840,5.7437,174.05,174.02,3.8091]
[1747590407038,101.05471693,174.14,174.02,3.8091]
[1747590407541,5.744,174.04,174.02,3.8091]
[1747590407843,101.05471693,174.14,174.02,3.8091]
[1747590408840,5.7435,174.05,174.02,3.8091]
[1747590409041,101.05471693,174.14,174.02,3.8091]
[1747590410439,5.7431,174.07,174.02,3.8091]
[1747590410644,5.7431,174.07,174.03,5.7439]
[1747590412646,5.7433,174.06,174.03,5.7439]
[1747590414348,5.7433,174.06,174.02,3.8091]
[1747590415252,5.7433,174.06,174.03,5.7441]
[1747590415947,91.9,174.12,174.02,9.5535]
[1747590416158,91.9,174.12,174.02,3.8091]
[1747590416358,5.7437,174.05,174.02,3.8091]
[1747590417471,5.7439,174.04,174.02,3.8091]
[1747590417966,8.35471693,174.11,174.02,3.8091]
[1747590418157,5.7438,174.05,174.02,3.8091]
[1747590420162,5.7432,174.06,174.02,3.8091]
[1747590421269,8.35471693,174.13,174.02,3.8091]
[1747590421567,91.52,174.12,174.02,3.8091]
[1747590422067,91.82,174.13,174.02,12.16381693]
[1747590422269,5.7412,174.12,174.08,5.7424]
[1747590423269,511.66461974,174.18,174.03,10.29021693]
[1747590423568,91.42,174.17,174.03,10.29021693]
[1747590423867,91.42,174.17,174.07,5.7428]
[1747590424367,91.42,174.17,174.06,5.7431]
[1747590424764,91.42,174.17,174.03,10.29021693]
[1747590424962,91.42,174.17,174.05,5.7434]
[1747590425367,5.7424,174.09,174.04,5.7436]
[1747590425873,5.7426,174.08,174.03,5.7441]
[1747590426164,5.7426,174.08,174.02,3.8091]
[1747590426165,91.3,174.11,174.02,3.8091]
[1747590426362,5.7439,174.04,174.02,3.8091]
[1747590426661,91.3,174.11,174.02,3.8091]
[1747590427067,5.7436,174.05,174.02,3.8091]
[1747590427363,91.3,174.11,174.02,3.8091]
[1747590427569,8.35471693,174.09,174.01,5.36239057]
[1747590428166,5.7445,174.03,173.98,5.7456]
[1747590428366,8.35471693,174.09,173.98,5.7456]
[1747590429170,8.35471693,174.09,173.96,93.6417]
[1747590429471,5.7444,174.03,173.96,93.6417]
[1747590429663,91.16,174.04,173.95,5.7465]
[1747590429970,182.98,174.04,173.94,5.36239057]
[1747590430768,5.7448,174.01,173.94,5.36239057]
[1747590431071,182.98,174.04,173.94,5.36239057]
[1747590431274,8.35471693,174.06,173.94,5.36239057]
[1747590431570,91.08,174.05,173.94,5.36239057]
[1747590431761,91.08,174.05,173.92,94.938]
[1747590432171,5.7456,173.99,173.94,5.747]
[1747590432778,5.7458,173.98,173.93,5.7474]
[1747590432972,8.35471693,174.03,173.92,3.858]
[1747590433373,8.35471693,174.03,173.92,9.6057]
[1747590433975,5.7464,173.97,173.93,5.7474]
[1747590434177,8.35471693,174.03,173.92,3.858]
[1747590435174,5.7467,173.96,173.92,3.858]
[1747590435874,8.35471693,174.03,173.92,3.858]
[1747590436077,8.35471693,174.0,173.92,3.858]
[1747590436278,90.9,173.99,173.92,3.858]
[1747590436976,90.9,173.99,173.89,97.5685]
[1747590437174,5.7473,173.94,173.9,5.7484]
[1747590437376,90.9,173.99,173.89,91.82]
[1747590437676,90.9,173.99,173.92,5.7475]
[1747590437876,90.9,173.99,173.89,91.82]
[1747590438080,5.7467,173.96,173.89,91.82]
[1747590438480,5.7467,173.96,173.91,5.7481]
[1747590439077,90.9,173.99,173.89,91.82]
[1747590439978,8.35471693,173.98,173.89,91.82]
[1747590440179,5.7487,173.9,173.86,496.44]
[1747590440370,5.7487,173.9,173.85,11.3237]
[1747590440571,8.35471693,173.98,173.85,5.5737]
[1747590440771,90.74,173.97,173.88,5.7491]
[1747590440971,90.74,173.97,173.85,5.5737]
[1747590441484,90.74,173.97,173.85,97.4337]
[1747590441677,5.7484,173.91,173.86,5.7495]
[1747590441982,90.74,173.97,173.86,5.7495]
[1747590442181,90.74,173.97,173.87,5.7494]
[1747590442781,5.7483,173.91,173.87,5.7494]
[1747590442978,90.74,173.97,173.87,5.7494]
[1747590443284,90.74,173.97,173.85,5.5737]
[1747590443285,5.7484,173.91,173.86,5.7497]
[1747590443478,5.7484,173.91,173.85,5.5737]
[1747590443884,5.7484,173.9,173.85,11.3235]
[1747590444084,90.74,173.97,173.85,5.5737]
[1747590444484,5.7484,173.91,173.85,5.5737]
[1747590445487,5.7484,173.91,173.87,5.7494]
[1747590445784,90.74,173.97,173.85,5.5737]
[1747590446287,5.7484,173.91,173.87,5.7493]
[1747590446485,90.74,173.97,173.85,5.5737]
[1747590446787,5.7482,173.91,173.87,5.7494]
[1747590447083,90.74,173.97,173.85,5.5737]
[1747590447478,100.21471693,173.98,173.85,5.5737]
[1747590447795,90.5,173.97,173.88,5.7491]
[1747590448186,90.5,173.97,173.85,5.5737]
[1747590448383,8.35471693,173.95,173.85,5.5737]
[1747590448886,8.35471693,173.95,173.85,3.6915]
[1747590449282,8.35471693,173.95,173.84,91.86]
[1747590449775,5.7497,173.87,173.84,91.86]
[1747590449974,90.4,173.91,173.82,3.99022461]
[1747590450282,8.35471693,173.89,173.82,3.99022461]
[1747590450884,5.7504,173.85,173.82,3.99022461]
[1747590451084,8.35471693,173.89,173.82,3.99022461]
[1747590451483,5.7508,173.83,173.82,3.99022461]
[1747590452187,5.7525,173.78,173.76,3.7856]
[1747590452383,8.35471693,173.83,173.73,5.36239057]
[1747590452590,8.35471693,173.8,173.73,5.36239057]
[1747590452984,5.7537,173.74,173.73,5.36239057]
[1747590453689,8.35471693,173.8,173.73,5.36239057]
[1747590453884,180.9,173.79,173.73,5.36239057]
[1747590454583,5.7537,173.74,173.73,5.36239057]
[1747590455887,8.35471693,173.74,173.58,5.36239057]
[1747590456092,8.35471693,173.78,173.61,8.35471693]
[1747590456287,5.7554,173.69,173.63,5.7572]
[1747590456488,180.84,173.77,173.62,3.948]
[1747590456688,8.35471693,173.75,173.62,3.948]
[1747590457189,90.18,173.74,173.62,3.948]